fUST/lending_fUST_20250411
["ID","MTS","AMOUNT","RATE_DAILY","PERIOD"]
[357676256,1744308647434,-5494.77,0.00016438,2]
[357676257,1744308647444,-500.0,0.00016438,2]
[357676258,1744308647454,-500.0,0.00016438,2]
[357676259,1744308647464,-500.0,0.00016438,2]
[357676260,1744308647474,-996.94,0.00016438,2]
[357676261,1744308647484,-500.0,0.00016438,2]
[357676262,1744308647494,-593.14,0.00016438,2]
[357676263,1744308647504,-500.0,0.00016438,2]
[357676264,1744308647513,-1239.11,0.00016438,2]
[357676265,1744308647523,-643.4,0.00016438,2]
[357676266,1744308647532,-500.0,0.00016438,2]
[357676267,1744308647541,-986.81,0.00016438,2]
[357676268,1744308647551,-1276.8,0.00016438,2]
[357676269,1744308647560,-6104.82,0.00016438,2]
[357676270,1744308647570,-500.0,0.00016438,2]
[357676271,1744308647579,-500.0,0.00016438,2]
[357676272,1744308647589,-500.0,0.00016438,2]
[357676273,1744308647599,-616.29,0.00016438,2]
[357676274,1744308647608,-151.0,0.00016438,2]
[357676275,1744308647619,-151.0,0.00016438,2]
[357676276,1744308647629,-1144.1243284,0.00016438,2]
[357676277,1744308647639,-420.0,0.00016471,2]
[357676278,1744308647649,-500.0,0.00016473,2]
[357676279,1744308647659,-282.00533468,0.00016473,2]
[357676280,1744308647669,-500.0,0.00016473,2]
[357676281,1744308647679,-500.0,0.00016473,2]
[357676282,1744308647688,-500.0,0.00016473,2]
[357676283,1744308647697,-500.0,0.00016473,2]
[357676284,1744308647707,-160.05123797,0.00016473,2]
[357676285,1744308647717,-500.0,0.00016473,2]
[357676286,1744308647727,-500.0,0.00016473,2]
[357676287,1744308647739,-231.0943888,0.00016473,2]
[357676288,1744308647751,-203.98748298,0.00016473,2]
[357676289,1744308647760,-500.0,0.00016473,2]
[357676290,1744308647770,-500.0,0.00016473,2]
[357676291,1744308647780,-500.0,0.00016473,2]
[357676292,1744308647789,-500.0,0.00016473,2]
[357676293,1744308647799,-500.0,0.00016473,2]
[357676294,1744308647809,-501.25419958,0.00016473,2]
[357676295,1744308647819,-500.0,0.00016473,2]
[357676296,1744308647828,-500.0,0.00016473,2]
[357676297,1744308647838,-500.0,0.00016473,2]
[357676298,1744308647847,-500.0,0.00016473,2]
[357676299,1744308647857,-500.0,0.00016473,2]
[357676300,1744308647866,-500.0,0.00016473,2]
[357676301,1744308647876,-500.0,0.00016473,2]
[357676302,1744308647885,-608.57002846,0.00016473,2]
[357676303,1744308647895,-552.47250484,0.00016473,2]
[357676304,1744308647905,-500.70445518,0.00016473,2]
[357676305,1744308647914,-500.0,0.00016473,2]
[357676306,1744308647924,-500.0,0.00016473,2]
[357676307,1744308647935,-500.0,0.00016473,2]
[357676308,1744308647945,-500.0,0.00016473,2]
[357676309,1744308647955,-500.0,0.00016473,2]
[357676310,1744308647966,-500.0,0.00016473,2]
[357676311,1744308647976,-390.45634783,0.00016473,2]
[357676312,1744308647991,-500.0,0.00016473,2]
[357676313,1744308648000,-500.0,0.00016473,2]
[357676314,1744308648009,-488.56680703,0.00016473,2]
[357676315,1744308648019,-160.07895703,0.00016473,2]
[357676316,1744308648030,-500.0,0.00016473,2]
[357676317,1744308648040,-500.88277033,0.00016473,2]
[357676318,1744308648050,-302.65203603,0.00016473,2]
[357676319,1744308648061,-500.0,0.00016473,2]
[357676320,1744308648072,-500.0,0.00016473,2]
[357676321,1744308648082,-500.74458319,0.00016473,2]
[357676322,1744308648092,-500.0,0.00016473,2]
[357676323,1744308648102,-500.0,0.00016473,2]
[357676324,1744308648112,-500.0,0.00016473,2]
[357676325,1744308648122,-500.0,0.00016473,2]
[357676326,1744308648132,-418.51396136,0.00016473,2]
[357676327,1744308648143,-500.0,0.00016473,2]
[357676328,1744308648153,-435.66944601,0.00016473,2]
[357676329,1744308648163,-500.0,0.00016473,2]
[357676330,1744308648173,-615.40015534,0.00016473,2]
[357676331,1744308648183,-500.0,0.00016473,2]
[357676332,1744308648193,-500.0,0.00016473,2]
[357676333,1744308648203,-500.0,0.00016473,2]
[357676334,1744308648213,-500.0,0.00016473,2]
[357676335,1744308648225,-500.0,0.00016473,2]
[357676336,1744308648235,-500.0,0.00016473,2]
[357676337,1744308648245,-500.0,0.00016473,2]
[357676338,1744308648255,-500.0,0.00016473,2]
[357676339,1744308648265,-202.03302463,0.00016473,2]
[357676340,1744308648275,-510.52882163,0.00016473,2]
[357676341,1744308648284,-502.65563665,0.00016473,2]
[357676342,1744308648294,-500.0,0.00016473,2]
[357676343,1744308648304,-500.0,0.00016473,2]
[357676344,1744308648313,-500.0,0.00016473,2]
[357676345,1744308648322,-500.0,0.00016473,2]
[357676346,1744308648333,-165.15300848,0.00016473,2]
[357676347,1744308648342,-500.0,0.00016473,2]
[357676348,1744308648352,-500.81423199,0.00016473,2]
[357676349,1744308648362,-500.0,0.00016473,2]
[357676350,1744308648371,-500.0,0.00016473,2]
[357676351,1744308648382,-151.0,0.000165,2]
[357676352,1744308648392,-500.0,0.00016544,2]
[357676353,1744308648401,-500.0,0.00016544,2]
[357676354,1744308648411,-41686.79212726,0.00016545,2]
[357676355,1744308648421,-1672.57785595,0.00016545,2]
[357676356,1744308648431,-157.6610457,0.00016575,2]
[357676357,1744308648440,-1646.33502774,0.000166,2]
[357676358,1744308648450,-151.0,0.00016613,2]
[357676359,1744308648461,-1436.24003621,0.00016627,2]
[357676360,1744308648472,-396.9,0.000167,2]
[357676361,1744308648482,-500.0,0.00016711,2]
[357676362,1744308648492,-500.0,0.00016711,2]
[357676363,1744308648503,-500.0,0.00016711,2]
[357676364,1744308648513,-837.80299543,0.00016712,3]
[357676365,1744308648522,-160.0,0.00016712,3]
[357676366,1744308648532,-12536.72526453,0.00016712,3]
[357676367,1744308648542,-3699.75,0.00016712,2]
[357676368,1744308648552,-507.94,0.00016712,2]
[357676369,1744308648561,-500.0,0.00016712,2]
[357676370,1744308648571,-500.0,0.00016712,2]
[357676371,1744308648581,-500.0,0.00016712,2]
[357676372,1744308648591,-500.0,0.00016712,2]
[357676373,1744308648601,-500.0,0.00016712,2]
[357676374,1744308648611,-500.0,0.00016712,2]
[357676375,1744308648621,-500.0,0.00016712,2]
[357676376,1744308648631,-500.0,0.00016712,2]
[357676377,1744308648641,-500.0,0.00016712,2]
[357676378,1744308648651,-245.94471044,0.00016712,2]
[357676379,1744308648661,-500.0,0.00016712,2]
[357676380,1744308648671,-500.0,0.00016712,2]
[357676381,1744308648680,-500.0,0.00016712,2]
[357676382,1744308648691,-500.0,0.00016712,2]
[357676383,1744308648701,-500.0,0.00016712,2]
[357676384,1744308648711,-500.0,0.00016712,2]
[357676385,1744308648723,-500.0,0.00016712,2]
[357676386,1744308648733,-500.0,0.00016712,2]
[357676387,1744308648743,-500.0,0.00016712,2]
[357676388,1744308648753,-787.59,0.00016712,2]
[357676389,1744308648763,-500.0,0.00016712,2]
[357676390,1744308648774,-500.0,0.00016712,2]
[357676391,1744308648784,-500.0,0.00016712,2]
[357676392,1744308648795,-500.0,0.00016712,2]
[357676393,1744308648806,-500.0,0.00016712,2]
[357676394,1744308648817,-500.0,0.00016712,2]
[357676395,1744308648827,-735.34,0.00016712,2]
[357676396,1744308648837,-651.68,0.00016712,2]
[357676397,1744308648848,-592.76778785,0.00016712,2]
[357676398,1744308648858,-500.0,0.00016712,2]
[357676399,1744308648869,-500.0,0.00016712,2]
[357676400,1744308648879,-500.0,0.00016712,2]
[357676401,1744308648889,-500.0,0.00016712,2]
[357676402,1744308648900,-500.0,0.00016712,2]
[357676403,1744308648910,-1142.8,0.00016712,2]
[357676404,1744308648920,-500.0,0.00016712,2]
[357676405,1744308648930,-500.0,0.00016712,2]
[357676406,1744308648941,-500.0,0.00016712,2]
[357676407,1744308648952,-500.0,0.00016712,2]
[357676408,1744308648962,-500.0,0.00016712,2]
[357676409,1744308649094,-1021.19,0.00016712,2]
[357676410,1744308649105,-1530.54,0.00016712,2]
[357676411,1744308649117,-500.0,0.00016712,2]
[357676412,1744308649127,-572.18232001,0.00016712,2]
[357676413,1744308649138,-500.0,0.00016712,2]
[357676414,1744308649154,-500.0,0.00016712,2]
[357676415,1744308649164,-500.0,0.00016712,2]
[357676416,1744308649175,-500.0,0.00016712,2]
[357676417,1744308649185,-500.0,0.00016712,2]
[357676418,1744308649194,-500.0,0.00016712,2]
[357676419,1744308649205,-1139.91,0.00016712,2]
[357676420,1744308649215,-500.0,0.00016712,2]
[357676421,1744308649225,-500.0,0.00016712,2]
[357676422,1744308649235,-500.0,0.00016712,2]
[357676423,1744308649245,-500.0,0.00016712,2]
[357676424,1744308649255,-500.0,0.00016712,2]
[357676425,1744308649265,-500.0,0.00016712,2]
[357676426,1744308649275,-500.0,0.00016712,2]
[357676427,1744308649284,-500.0,0.00016712,2]
[357676428,1744308649294,-500.0,0.00016712,2]
[357676429,1744308649304,-500.0,0.00016712,2]
[357676430,1744308649314,-500.0,0.00016712,2]
[357676431,1744308649324,-500.0,0.00016712,2]
[357676432,1744308649334,-500.0,0.00016712,2]
[357676433,1744308649344,-500.0,0.00016712,2]
[357676434,1744308649355,-541.76,0.00016712,2]
[357676435,1744308649364,-500.0,0.00016712,2]
[357676436,1744308649375,-500.0,0.00016712,2]
[357676437,1744308649385,-942.66,0.00016712,2]
[357676438,1744308649395,-500.0,0.00016712,2]
[357676439,1744308649405,-500.0,0.00016712,2]
[357676440,1744308649414,-500.0,0.00016712,2]
[357676441,1744308649424,-500.0,0.00016712,2]
[357676442,1744308649434,-500.0,0.00016712,2]
[357676443,1744308649444,-1289.32,0.00016712,2]
[357676444,1744308649454,-500.0,0.00016712,2]
[357676445,1744308649464,-500.0,0.00016712,2]
[357676446,1744308649475,-500.0,0.00016712,2]
[357676447,1744308649486,-500.0,0.00016712,2]
[357676448,1744308649496,-500.0,0.00016712,2]
[357676449,1744308649506,-500.0,0.00016712,2]
[357676450,1744308649516,-559.91,0.00016712,2]
[357676451,1744308649526,-584.3,0.00016712,2]
[357676452,1744308649536,-686.47,0.00016712,2]
[357676453,1744308649546,-500.0,0.00016712,2]
[357676454,1744308649557,-764.79,0.00016712,2]
[357676455,1744308649566,-500.0,0.00016712,2]
[357676456,1744308649576,-500.0,0.00016712,2]
[357676457,1744308649586,-500.0,0.00016712,2]
[357676458,1744308649596,-511.46,0.00016712,2]
[357676459,1744308649606,-1630.62,0.00016712,2]
[357676460,1744308649615,-500.0,0.00016712,2]
[357676461,1744308649625,-1230.63,0.00016712,2]
[357676462,1744308649635,-623.16,0.00016712,2]
[357676463,1744308649644,-500.0,0.00016712,2]
[357676464,1744308649653,-500.0,0.00016712,2]
[357676465,1744308649663,-714.0,0.00016712,2]
[357676466,1744308649673,-504.44,0.00016712,2]
[357676467,1744308649683,-2337.16,0.00016712,2]
[357676468,1744308649692,-1836.68,0.00016712,2]
[357676469,1744308649702,-621.33,0.00016712,2]
[357676470,1744308649712,-500.0,0.00016712,2]
[357676471,1744308649722,-647.43,0.00016712,2]
[357676472,1744308649733,-500.0,0.00016712,2]
[357676473,1744308649742,-500.0,0.00016712,2]
[357676474,1744308649752,-562.43,0.00016712,2]
[357676475,1744308649763,-527.15,0.00016712,2]
[357676476,1744308649772,-500.0,0.00016712,2]
[357676477,1744308649782,-1114.28,0.00016712,2]
[357676478,1744308649791,-500.0,0.00016712,2]
[357676479,1744308649801,-346.13946233,0.00016712,2]
[357676480,1744308649811,-500.0,0.00016712,2]
[357676481,1744308649821,-738.55,0.00016712,2]
[357676482,1744308649831,-744.91,0.00016712,2]
[357676483,1744308649841,-500.0,0.00016712,2]
[357676484,1744308649851,-991.01,0.00016712,2]
[357676485,1744308649861,-500.0,0.00016712,2]
[357676486,1744308649870,-500.0,0.00016712,2]
[357676487,1744308649880,-645.74760486,0.00016712,2]
[357676488,1744308649890,-930.54,0.00016712,2]
[357676489,1744308649900,-878.33,0.00016712,2]
[357676490,1744308649910,-1972.93,0.00016712,2]
[357676491,1744308649920,-500.0,0.00016712,2]
[357676492,1744308649930,-513.05,0.00016712,2]
[357676493,1744308649940,-500.0,0.00016712,2]
[357676494,1744308649950,-500.0,0.00016712,2]
[357676495,1744308649960,-500.0,0.00016712,2]
[357676496,1744308649970,-1857.72,0.00016712,2]
[357676497,1744308649980,-504.46810296,0.00016712,2]
[357676498,1744308649994,-500.0,0.00016712,2]
[357676499,1744308650004,-500.0,0.00016712,2]
[357676500,1744308650014,-500.0,0.00016712,2]
[357676501,1744308650024,-1454.25,0.00016712,2]
[357676502,1744308650036,-1137.97,0.00016712,2]
[357676503,1744308650046,-500.0,0.00016712,2]
[357676504,1744308650055,-500.0,0.00016712,2]
[357676505,1744308650066,-528.26,0.00016712,2]
[357676506,1744308650075,-500.0,0.00016712,2]
[357676507,1744308650085,-500.0,0.00016712,2]
[357676508,1744308650094,-500.0,0.00016712,2]
[357676509,1744308650103,-500.0,0.00016712,2]
[357676510,1744308650113,-562.49,0.00016712,2]
[357676511,1744308650123,-667.3,0.00016712,2]
[357676512,1744308650132,-500.0,0.00016712,2]
[357676513,1744308650142,-500.0,0.00016712,2]
[357676514,1744308650152,-500.0,0.00016712,2]
[357676515,1744308650161,-500.0,0.00016712,2]
[357676516,1744308650170,-173.1126673,0.00016712,2]
[357676517,1744308650180,-172.74329155,0.00016712,2]
[357676518,1744308650190,-777.43,0.00016712,2]
[357676519,1744308650200,-3480.53,0.00016712,2]
[357676520,1744308650210,-415.20495014,0.00016712,2]
[357676521,1744308650219,-1177.22,0.00016712,2]
[357676522,1744308650229,-3131.24,0.00016712,2]
[357676523,1744308650239,-500.0,0.00016712,2]
[357676524,1744308650248,-500.0,0.00016712,2]
[357676525,1744308650258,-269.12886725,0.00016712,2]
[357676526,1744308650268,-800.53,0.00016712,2]
[357676527,1744308650278,-500.0,0.00016712,2]
[357676528,1744308650288,-514.76,0.00016712,2]
[357676529,1744308650298,-500.0,0.00016712,2]
[357676530,1744308650308,-3474.89,0.00016712,2]
[357676531,1744308650318,-1414.1,0.00016712,2]
[357676532,1744308650327,-500.0,0.00016712,2]
[357676533,1744308650337,-500.0,0.00016712,2]
[357676534,1744308650346,-249.62994577,0.00016712,2]
[357676535,1744308650356,-636.68787202,0.00016712,2]
[357676536,1744308650366,-585.19,0.00016712,2]
[357676537,1744308650376,-500.0,0.00016712,2]
[357676538,1744308650385,-6486.84,0.00016712,2]
[357676539,1744308650395,-1008.02,0.00016712,2]
[357676540,1744308650405,-743.63,0.00016712,2]
[357676541,1744308650414,-642.81,0.00016712,2]
[357676542,1744308650424,-775.89,0.00016712,2]
[357676543,1744308650433,-887.63,0.00016712,2]
[357676544,1744308650442,-500.0,0.00016712,2]
[357676545,1744308650452,-500.0,0.00016712,2]
[357676546,1744308650462,-500.0,0.00016712,2]
[357676547,1744308650474,-500.0,0.00016712,2]
[357676548,1744308650483,-1298.71,0.00016712,2]
[357676549,1744308650492,-500.32,0.00016712,2]
[357676550,1744308650502,-500.0,0.00016712,2]
[357676551,1744308650511,-806.3,0.00016712,2]
[357676552,1744308650521,-500.0,0.00016712,2]
[357676553,1744308650531,-500.0,0.00016712,2]
[357676554,1744308650541,-500.0,0.00016712,2]
[357676555,1744308650550,-1217.57,0.00016712,2]
[357676556,1744308650560,-500.0,0.00016712,2]
[357676557,1744308650575,-500.0,0.00016712,2]
[357676558,1744308650704,-500.0,0.00016712,2]
[357676559,1744308650714,-500.0,0.00016712,2]
[357676560,1744308650725,-500.0,0.00016712,2]
[357676561,1744308650735,-500.0,0.00016712,2]
[357676562,1744308650745,-1000.0,0.00016712,2]
[357676563,1744308650754,-500.0,0.00016712,2]
[357676564,1744308650764,-1000.0,0.00016712,2]
[357676565,1744308650774,-500.0,0.00016712,2]
[357676566,1744308650784,-500.0,0.00016712,2]
[357676567,1744308650793,-500.0,0.00016712,2]
[357676568,1744308650804,-500.0,0.00016712,2]
[357676569,1744308650814,-571.74242405,0.00016712,2]
[357676570,1744308650824,-503.55217359,0.00016712,2]
[357676571,1744308650833,-500.0,0.00016712,2]
[357676572,1744308650843,-500.0,0.00016712,2]
[357676573,1744308650852,-500.0,0.00016712,2]
[357676574,1744308650863,-500.0,0.00016712,2]
[357676575,1744308650872,-500.0,0.00016712,2]
[357676576,1744308650882,-500.0,0.00016712,2]
[357676577,1744308650892,-500.0,0.00016712,2]
[357676578,1744308650902,-500.0,0.00016712,2]
[357676579,1744308650911,-732.44,0.00016712,2]
[357676580,1744308650921,-2354.72,0.00016712,2]
[357676581,1744308650931,-502.31,0.00016712,2]
[357676582,1744308650941,-616.04,0.00016712,2]
[357676583,1744308650952,-500.0,0.00016712,2]
[357676584,1744308650962,-500.0,0.00016712,2]
[357676585,1744308650972,-500.0,0.00016712,2]
[357676586,1744308650982,-609.5,0.00016712,2]
[357676587,1744308650996,-500.0,0.00016712,2]
[357676588,1744308651006,-500.0,0.00016712,2]
[357676589,1744308651016,-500.0,0.00016712,2]
[357676590,1744308651025,-573.32,0.00016712,2]
[357676591,1744308651036,-2690.58,0.00016712,2]
[357676592,1744308651045,-500.0,0.00016712,2]
[357676593,1744308651055,-500.0,0.00016712,2]
[357676594,1744308651068,-500.0,0.00016712,2]
[357676595,1744308651077,-500.0,0.00016712,2]
[357676596,1744308651087,-500.0,0.00016712,2]
[357676597,1744308651097,-500.0,0.00016712,2]
[357676598,1744308651106,-500.0,0.00016712,2]
[357676599,1744308651116,-500.0,0.00016712,2]
[357676600,1744308651125,-500.0,0.00016712,2]
[357676601,1744308651135,-1152.17,0.00016712,2]
[357676602,1744308651145,-500.0,0.00016712,2]
[357676603,1744308651155,-500.0,0.00016712,2]
[357676604,1744308651165,-500.0,0.00016712,2]
[357676605,1744308651176,-500.0,0.00016712,2]
[357676606,1744308651186,-500.0,0.00016712,2]
[357676607,1744308651196,-500.0,0.00016712,2]
[357676608,1744308651206,-500.0,0.00016712,2]
[357676609,1744308651215,-825.61,0.00016712,2]
[357676610,1744308651226,-1102.5,0.00016712,2]
[357676611,1744308651235,-500.0,0.00016712,2]
[357676612,1744308651245,-500.0,0.00016712,2]
[357676613,1744308651254,-692.23,0.00016712,2]
[357676614,1744308651263,-500.0,0.00016712,2]
[357676615,1744308651273,-500.0,0.00016712,2]
[357676616,1744308651283,-500.0,0.00016712,2]
[357676617,1744308651292,-500.0,0.00016712,2]
[357676618,1744308651301,-500.0,0.00016712,2]
[357676619,1744308651311,-500.0,0.00016712,2]
[357676620,1744308651320,-175.803443,0.00016712,2]
[357676621,1744308651330,-500.0,0.00016712,2]
[357676622,1744308651339,-500.0,0.00016712,2]
[357676623,1744308651349,-500.0,0.00016712,2]
[357676624,1744308651359,-500.0,0.00016712,2]
[357676625,1744308651374,-1297.45,0.00016712,2]
[357676626,1744308651399,-500.0,0.00016712,2]
[357676627,1744308651417,-500.0,0.00016712,2]
[357676628,1744308651441,-190.79,0.00016712,2]
[357676629,1744308651464,-500.0,0.00016712,2]
[357676630,1744308651485,-1276.09,0.00016712,2]
[357676631,1744308651506,-500.0,0.00016712,2]
[357676632,1744308651526,-500.0,0.00016712,2]
[357676633,1744308651542,-258.66731996,0.00016712,2]
[357676634,1744308651562,-639.49,0.00016712,2]
[357676635,1744308651585,-500.0,0.00016712,2]
[357676636,1744308651606,-578.14180293,0.00016712,2]
[357676637,1744308651620,-500.0,0.00016712,2]
[357676638,1744308651643,-546.63,0.00016712,2]
[357676639,1744308651659,-747.46,0.00016712,2]
[357676640,1744308651677,-500.0,0.00016712,2]
[357676641,1744308651691,-500.0,0.00016712,2]
[357676642,1744308651708,-1102.16,0.00016712,2]
[357676643,1744308651726,-540.03,0.00016712,2]
[357676644,1744308651743,-500.0,0.00016712,2]
[357676645,1744308651759,-1241.53,0.00016712,2]
[357676646,1744308651776,-589.90815465,0.00016712,2]
[357676647,1744308651794,-1719.55,0.00016712,2]
[357676648,1744308651810,-500.0,0.00016712,2]
[357676649,1744308651828,-500.0,0.00016712,2]
[357676650,1744308651844,-852.09,0.00016712,2]
[357676651,1744308651861,-918.22,0.00016712,2]
[357676652,1744308651878,-2798.03,0.00016712,2]
[357676653,1744308651894,-630.8,0.00016712,2]
[357676654,1744308651911,-500.0,0.00016712,2]
[357676655,1744308651932,-500.0,0.00016712,2]
[357676656,1744308651949,-728.04,0.00016712,2]
[357676657,1744308651967,-356.26013972,0.00016712,2]
[357676658,1744308651985,-3500.92,0.00016712,2]
[357676659,1744308652008,-1246.5,0.00016712,2]
[357676660,1744308652026,-500.0,0.00016712,2]
[357676661,1744308652046,-500.0,0.00016712,2]
[357676662,1744308652064,-500.0,0.00016712,2]
[357676663,1744308652082,-500.0,0.00016712,2]
[357676664,1744308652101,-500.0,0.00016712,2]
[357676665,1744308652118,-500.0,0.00016712,2]
[357676666,1744308652136,-2124.05,0.00016712,2]
[357676667,1744308652154,-887.27,0.00016712,2]
[357676668,1744308652171,-1301.77,0.00016712,2]
[357676669,1744308652189,-500.0,0.00016712,2]
[357676670,1744308652205,-1002.55,0.00016712,2]
[357676671,1744308652223,-2038.69,0.00016712,2]
[357676672,1744308652240,-500.0,0.00016712,2]
[357676673,1744308652257,-500.0,0.00016712,2]
[357676674,1744308652273,-657.69,0.00016712,2]
[357676675,1744308652292,-1293.5,0.00016712,2]
[357676676,1744308652308,-315.62264451,0.00016712,2]
[357676677,1744308652326,-3770.16,0.00016712,2]
[357676678,1744308652343,-1011.21,0.00016712,2]
[357676679,1744308652361,-561.95,0.00016712,2]
[357676680,1744308652378,-2453.43,0.00016712,2]
[357676681,1744308652396,-500.0,0.00016712,2]
[357676682,1744308652413,-500.0,0.00016712,2]
[357676683,1744308652431,-500.0,0.00016712,2]
[357676684,1744308652448,-500.0,0.00016712,2]
[357676685,1744308652467,-500.0,0.00016712,2]
[357676686,1744308652485,-3679.27,0.00016712,2]
[357676687,1744308652503,-781.8,0.00016712,2]
[357676688,1744308652521,-908.87,0.00016712,2]
[357676689,1744308652539,-500.0,0.00016712,2]
[357676690,1744308652557,-500.0,0.00016712,2]
[357676691,1744308652576,-2526.87,0.00016712,2]
[357676692,1744308652592,-616.63,0.00016712,2]
[357676693,1744308652602,-989.54,0.00016712,2]
[357676694,1744308652612,-500.0,0.00016712,2]
[357676695,1744308652842,-3776.81,0.00016712,2]
[357676696,1744308652853,-1442.23,0.00016712,2]
[357676697,1744308652863,-6890.94,0.00016712,2]
[357676698,1744308652873,-500.0,0.00016712,2]
[357676699,1744308652883,-500.0,0.00016712,2]
[357676700,1744308652893,-500.0,0.00016712,2]
[357676701,1744308652902,-936.33,0.00016712,2]
[357676702,1744308652911,-500.0,0.00016712,2]
[357676703,1744308652922,-989.96,0.00016712,2]
[357676704,1744308652932,-4539.48,0.00016712,2]
[357676705,1744308652943,-1235.93,0.00016712,2]
[357676706,1744308652952,-1662.2,0.00016712,2]
[357676707,1744308652962,-500.0,0.00016712,2]
[357676708,1744308652972,-696.44,0.00016712,2]
[357676709,1744308652983,-2768.86,0.00016712,2]
[357676710,1744308652996,-500.0,0.00016712,2]
[357676711,1744308653006,-500.0,0.00016712,2]
[357676712,1744308653016,-500.0,0.00016712,2]
[357676713,1744308653027,-3518.02,0.00016712,2]
[357676714,1744308653037,-500.0,0.00016712,2]
[357676715,1744308653047,-500.0,0.00016712,2]
[357676716,1744308653057,-500.0,0.00016712,2]
[357676717,1744308653068,-500.0,0.00016712,2]
[357676718,1744308653079,-1152.51,0.00016712,2]
[357676719,1744308653088,-692.21,0.00016712,2]
[357676720,1744308653097,-1510.33,0.00016712,2]
[357676721,1744308653107,-500.0,0.00016712,2]
[357676722,1744308653117,-1067.65,0.00016712,2]
[357676723,1744308653127,-500.0,0.00016712,2]
[357676724,1744308653136,-3186.35,0.00016712,2]
[357676725,1744308653146,-500.0,0.00016712,2]
[357676726,1744308653155,-827.07,0.00016712,2]
[357676727,1744308653165,-862.12,0.00016712,2]
[357676728,1744308653175,-405.08190384,0.00016712,2]
[357676729,1744308653482,-94.91809616,0.00016712,2]
[357676730,1744308653492,-2279.3,0.00016712,2]
[357676731,1744308653502,-560.20183833,0.00016712,2]
[357676732,1744308653512,-500.0,0.00016712,2]
[357676733,1744308653522,-500.0,0.00016712,2]
[357676734,1744308653531,-11.50503825,0.00016712,2]
[357676735,1744308653543,-488.49496175,0.00016712,2]
[357676736,1744308653554,-335.05003525,0.00016712,2]
[357676737,1744308653566,-1342.49996475,0.00016712,2]
[357676738,1744308653575,-20782.81,0.00016712,2]
[357676739,1744308653585,-500.0,0.00016712,2]
[357676740,1744308653594,-500.0,0.00016712,2]
[357676741,1744308653603,-701.79724125,0.00016712,2]
[357676742,1744308653958,-1000.23,0.00016438,2]
[357676743,1744308653968,-1047.04275875,0.00016712,2]
[357676744,1744308653979,-500.0,0.00016712,2]
[357676745,1744308653990,-500.0,0.00016712,2]
[357676746,1744308654001,-759.38,0.00016712,2]
[357676747,1744308654011,-500.0,0.00016712,2]
[357676748,1744308654021,-500.0,0.00016712,2]
[357676749,1744308654031,-2960.71854783,0.00016712,2]
[357676750,1744308654057,-525.92145217,0.00016712,2]
[357676751,1744308654069,-500.0,0.00016712,2]
[357676752,1744308654079,-500.0,0.00016712,2]
[357676753,1744308654089,-500.0,0.00016712,2]
[357676754,1744308654098,-500.0,0.00016712,2]
[357676755,1744308654108,-500.0,0.00016712,2]